fUST/lending_fUST_20250217
["ID","MTS","AMOUNT","RATE_DAILY","PERIOD"]
[353272408,1739733050040,-909.52,8.547e-05,2]
[353272409,1739733050050,-3038.02,8.547e-05,2]
[353272410,1739733050059,-1125.48,8.547e-05,2]
[353272411,1739733050068,-500.0,8.547e-05,2]
[353272412,1739733050078,-500.0,8.547e-05,2]
[353272413,1739733050087,-500.0,8.547e-05,2]
[353272414,1739733050096,-500.0,8.547e-05,2]
[353272415,1739733050105,-500.0,8.547e-05,2]
[353272416,1739733050114,-500.0,8.547e-05,2]
[353272417,1739733050123,-500.0,8.547e-05,2]
[353272418,1739733050133,-3918.87,8.547e-05,2]
[353272419,1739733050142,-2219.97,8.547e-05,2]
[353272420,1739733050151,-1247.21,8.547e-05,2]
[353272421,1739733050161,-500.0,8.547e-05,2]
[353272422,1739733050170,-2054.68,8.547e-05,2]
[353272423,1739733050179,-1640.14,8.547e-05,2]
[353272424,1739733050188,-500.0,8.547e-05,2]
[353272425,1739733050199,-10798.56,8.547e-05,2]
[353272426,1739733050208,-823.15,8.547e-05,2]
[353272427,1739733050218,-857.07,8.547e-05,2]
[353272428,1739733050228,-500.0,8.547e-05,2]
[353272429,1739733050237,-500.0,8.547e-05,2]
[353272430,1739733050247,-500.0,8.63e-05,2]
[353272431,1739733050256,-500.0,8.63e-05,2]
[353272432,1739733050266,-500.0,8.63e-05,2]
[353272433,1739733050276,-500.0,8.63e-05,2]
[353272434,1739733050285,-500.0,8.63e-05,2]
[353272435,1739733050294,-500.0,8.63e-05,2]
[353272436,1739733050304,-500.0,8.63e-05,2]
[353272437,1739733050313,-1988.86,8.63e-05,2]
[353272438,1739733050322,-500.0,8.63e-05,2]
[353272439,1739733050333,-504.9,8.63e-05,2]
[353272440,1739733050343,-500.0,8.63e-05,2]
[353272441,1739733050352,-500.0,8.63e-05,2]
[353272442,1739733050363,-517.91,8.63e-05,2]
[353272443,1739733050372,-500.0,8.63e-05,2]
[353272444,1739733050381,-500.0,8.63e-05,2]
[353272445,1739733050390,-500.0,8.63e-05,2]
[353272446,1739733050399,-665.11,8.63e-05,2]
[353272447,1739733050408,-657.75,8.63e-05,2]
[353272448,1739733050417,-500.0,8.63e-05,2]
[353272449,1739733050427,-500.0,8.63e-05,2]
[353272450,1739733050436,-1060.72,8.63e-05,2]
[353272451,1739733050446,-500.0,8.63e-05,2]
[353272452,1739733050455,-500.0,8.63e-05,2]
[353272453,1739733050464,-500.0,8.63e-05,2]
[353272454,1739733050473,-613.58,8.63e-05,2]
[353272455,1739733050482,-500.0,8.63e-05,2]
[353272456,1739733050491,-515.97,8.63e-05,2]
[353272457,1739733050501,-500.0,8.63e-05,2]
[353272458,1739733050510,-500.0,8.63e-05,2]
[353272459,1739733050519,-500.0,8.63e-05,2]
[353272460,1739733050529,-232.16919538,8.63e-05,2]
[353272461,1739733050538,-500.0,8.63e-05,2]
[353272462,1739733050547,-500.0,8.63e-05,2]
[353272463,1739733050556,-699.6,8.63e-05,2]
[353272464,1739733050566,-876.51,8.63e-05,2]
[353272465,1739733050575,-1483.37,8.63e-05,2]
[353272466,1739733050586,-24243.02,8.63e-05,2]
[353272467,1739733050595,-500.0,8.63e-05,2]
[353272468,1739733050604,-760.68,8.63e-05,2]
[353272469,1739733050613,-1122.57,8.63e-05,2]
[353272470,1739733050623,-2544.33,8.63e-05,2]
[353272471,1739733050632,-702.92,8.63e-05,2]
[353272472,1739733050641,-4575.58,8.63e-05,2]
[353272473,1739733050651,-579.63,8.63e-05,2]
[353272474,1739733050660,-657.42,8.63e-05,2]
[353272475,1739733050670,-500.0,8.63e-05,2]
[353272476,1739733050679,-500.0,8.63e-05,2]
[353272477,1739733050688,-500.0,8.63e-05,2]
[353272478,1739733050697,-500.0,8.63e-05,2]
[353272479,1739733050706,-2085.29,8.63e-05,2]
[353272480,1739733050715,-1091.36,8.63e-05,2]
[353272481,1739733050724,-591.81,8.63e-05,2]
[353272482,1739733050733,-500.0,8.63e-05,2]
[353272483,1739733050742,-729.94,8.63e-05,2]
[353272484,1739733050751,-500.0,8.63e-05,2]
[353272485,1739733050760,-500.0,8.63e-05,2]
[353272486,1739733050770,-1387.47,8.63e-05,2]
[353272487,1739733050779,-2021.25,8.63e-05,2]
[353272488,1739733050789,-500.0,8.63e-05,2]
[353272489,1739733050799,-500.0,8.63e-05,2]
[353272490,1739733050808,-659.34,8.63e-05,2]
[353272491,1739733050818,-1469.94,8.63e-05,2]
[353272492,1739733050827,-981.07,8.63e-05,2]
[353272493,1739733050836,-500.0,8.63e-05,2]
[353272494,1739733050845,-1248.94,8.63e-05,2]
[353272495,1739733050855,-500.0,8.63e-05,2]
[353272496,1739733050865,-11079.13,8.63e-05,2]
[353272497,1739733050875,-909.52,8.63e-05,2]
[353272498,1739733050884,-3038.02,8.63e-05,2]
[353272499,1739733050894,-1125.48,8.63e-05,2]
[353272500,1739733050903,-500.0,8.63e-05,2]
[353272501,1739733050912,-500.0,8.63e-05,2]
[353272502,1739733050921,-500.0,8.63e-05,2]
[353272503,1739733050930,-500.0,8.63e-05,2]
[353272504,1739733050939,-500.0,8.63e-05,2]
[353272505,1739733050948,-500.0,8.63e-05,2]
[353272506,1739733050960,-500.0,8.63e-05,2]
[353272507,1739733050970,-3918.87,8.63e-05,2]
[353272508,1739733050979,-2219.97,8.63e-05,2]
[353272509,1739733050988,-1247.21,8.63e-05,2]
[353272510,1739733050999,-500.0,8.63e-05,2]
[353272511,1739733051008,-2054.68,8.63e-05,2]
[353272512,1739733051017,-1640.14,8.63e-05,2]
[353272513,1739733051028,-500.0,8.63e-05,2]
[353272514,1739733051037,-10798.56,8.63e-05,2]
[353272515,1739733051046,-823.15,8.63e-05,2]
[353272516,1739733051055,-857.07,8.63e-05,2]
[353272517,1739733051064,-500.0,8.63e-05,2]
[353272518,1739733051073,-589.21984902,8.63e-05,2]
[353272519,1739733051082,-500.0,8.657e-05,2]
[353272520,1739733051092,-150.05,8.657e-05,2]
[353272521,1739733051101,-238.56641383,8.657e-05,2]
[353272522,1739733051111,-500.0,8.657e-05,2]
[353272523,1739733051121,-150.05,8.657e-05,2]
[353272524,1739733051131,-944.0,8.657e-05,2]
[353272525,1739733051142,-562.0,8.657e-05,2]
[353272526,1739733051153,-500.0,8.657e-05,2]
[353272527,1739733051163,-500.0,8.712e-05,2]
[353272528,1739733051173,-500.0,8.712e-05,2]
[353272529,1739733051182,-500.0,8.712e-05,2]
[353272530,1739733051191,-500.0,8.712e-05,2]
[353272531,1739733051200,-500.0,8.712e-05,2]
[353272532,1739733051211,-500.0,8.712e-05,2]
[353272533,1739733051221,-500.0,8.712e-05,2]
[353272534,1739733051232,-1988.86,8.712e-05,2]
[353272535,1739733051241,-500.0,8.712e-05,2]
[353272536,1739733051250,-504.9,8.712e-05,2]
[353272537,1739733051259,-500.0,8.712e-05,2]
[353272538,1739733051269,-500.0,8.712e-05,2]
[353272539,1739733051279,-517.91,8.712e-05,2]
[353272540,1739733051290,-500.0,8.712e-05,2]
[353272541,1739733051299,-500.0,8.712e-05,2]
[353272542,1739733051308,-462.88588621,8.712e-05,2]
[353272543,1739733051318,-665.11,8.712e-05,2]
[353272544,1739733051327,-657.75,8.712e-05,2]
[353272545,1739733051336,-500.0,8.712e-05,2]
[353272546,1739733051346,-500.0,8.712e-05,2]
[353272547,1739733051355,-1060.72,8.712e-05,2]
[353272548,1739733051364,-500.0,8.712e-05,2]
[353272549,1739733051374,-500.0,8.712e-05,2]
[353272550,1739733051383,-500.0,8.712e-05,2]
[353272551,1739733051393,-613.58,8.712e-05,2]
[353272552,1739733051403,-500.0,8.712e-05,2]
[353272553,1739733051412,-515.97,8.712e-05,2]
[353272554,1739733051423,-332.21081707,8.712e-05,2]
[353272555,1739733051433,-500.0,8.712e-05,2]
[353272556,1739733051442,-500.0,8.712e-05,2]
[353272557,1739733051452,-500.0,8.712e-05,2]
[353272558,1739733051462,-500.0,8.712e-05,2]
[353272559,1739733051471,-699.6,8.712e-05,2]
[353272560,1739733051480,-876.51,8.712e-05,2]
[353272561,1739733051489,-1483.37,8.712e-05,2]
[353272562,1739733051498,-24243.02,8.712e-05,2]
[353272563,1739733051507,-500.0,8.712e-05,2]
[353272564,1739733051516,-760.68,8.712e-05,2]
[353272565,1739733051526,-1122.57,8.712e-05,2]
[353272566,1739733051536,-2544.33,8.712e-05,2]
[353272567,1739733051545,-702.92,8.712e-05,2]
[353272568,1739733051555,-4575.58,8.712e-05,2]
[353272569,1739733051565,-579.63,8.712e-05,2]
[353272570,1739733051575,-657.42,8.712e-05,2]
[353272571,1739733051584,-500.0,8.712e-05,2]
[353272572,1739733051594,-500.0,8.712e-05,2]
[353272573,1739733051603,-500.0,8.712e-05,2]
[353272574,1739733051613,-500.0,8.712e-05,2]
[353272575,1739733051622,-2085.29,8.712e-05,2]
[353272576,1739733051631,-1091.36,8.712e-05,2]
[353272577,1739733051642,-591.81,8.712e-05,2]
[353272578,1739733051652,-500.0,8.712e-05,2]
[353272579,1739733051661,-729.94,8.712e-05,2]
[353272580,1739733051670,-500.0,8.712e-05,2]
[353272581,1739733051680,-500.0,8.712e-05,2]
[353272582,1739733051689,-1387.47,8.712e-05,2]
[353272583,1739733051698,-2021.25,8.712e-05,2]
[353272584,1739733051707,-303.02966921,8.712e-05,2]
[353272585,1739733051719,-500.0,8.712e-05,2]
[353272586,1739733051729,-659.34,8.712e-05,2]
[353272587,1739733051739,-1469.94,8.712e-05,2]
[353272588,1739733051748,-981.07,8.712e-05,2]
[353272589,1739733051758,-500.0,8.712e-05,2]
[353272590,1739733051767,-1248.94,8.712e-05,2]
[353272591,1739733051776,-500.0,8.712e-05,2]
[353272592,1739733051787,-11079.13,8.712e-05,2]
[353272593,1739733051796,-909.52,8.712e-05,2]
[353272594,1739733051806,-3038.02,8.712e-05,2]
[353272595,1739733051815,-1125.48,8.712e-05,2]
[353272596,1739733051825,-500.0,8.712e-05,2]
[353272597,1739733051835,-500.0,8.712e-05,2]
[353272598,1739733051844,-500.0,8.712e-05,2]
[353272599,1739733051854,-500.0,8.712e-05,2]
[353272600,1739733051865,-500.0,8.712e-05,2]
[353272601,1739733051874,-500.0,8.712e-05,2]
[353272602,1739733051883,-500.0,8.712e-05,2]
[353272603,1739733051892,-3918.87,8.712e-05,2]
[353272604,1739733051902,-2219.97,8.712e-05,2]
[353272605,1739733051911,-1247.21,8.712e-05,2]
[353272606,1739733051921,-500.0,8.712e-05,2]
[353272607,1739733051930,-2054.68,8.712e-05,2]
[353272608,1739733051939,-1640.14,8.712e-05,2]
[353272609,1739733051950,-500.0,8.712e-05,2]
[353272610,1739733051963,-10798.56,8.712e-05,2]
[353272611,1739733051972,-823.15,8.712e-05,2]
[353272612,1739733051983,-857.07,8.712e-05,2]
[353272613,1739733052095,-500.0,8.712e-05,2]
[353272614,1739733052105,-480.67124028,8.713e-05,2]
[353272615,1739733052115,-2658.744,8.728e-05,2]
[353272616,1739733052125,-497.2799037,8.794e-05,2]
[353272617,1739733052134,-500.0,8.794e-05,2]
[353272618,1739733052143,-500.0,8.794e-05,2]
[353272619,1739733052153,-500.0,8.794e-05,2]
[353272620,1739733052162,-500.0,8.794e-05,2]
[353272621,1739733052171,-495.83320851,8.794e-05,2]
[353272622,1739733052181,-500.0,8.794e-05,2]
[353272623,1739733052191,-500.0,8.794e-05,2]
[353272624,1739733052200,-1988.86,8.794e-05,2]
[353272625,1739733052210,-500.0,8.794e-05,2]
[353272626,1739733052219,-504.9,8.794e-05,2]
[353272627,1739733052229,-500.0,8.794e-05,2]
[353272628,1739733052238,-500.0,8.794e-05,2]
[353272629,1739733052248,-517.91,8.794e-05,2]
[353272630,1739733052258,-500.0,8.794e-05,2]
[353272631,1739733052267,-500.0,8.794e-05,2]
[353272632,1739733052277,-665.11,8.794e-05,2]
[353272633,1739733052287,-657.75,8.794e-05,2]
[353272634,1739733052296,-500.0,8.794e-05,2]
[353272635,1739733052305,-500.0,8.794e-05,2]
[353272636,1739733052315,-1060.72,8.794e-05,2]
[353272637,1739733052325,-500.0,8.794e-05,2]
[353272638,1739733052334,-500.0,8.794e-05,2]
[353272639,1739733052343,-500.0,8.794e-05,2]
[353272640,1739733052353,-613.58,8.794e-05,2]
[353272641,1739733052362,-500.0,8.794e-05,2]
[353272642,1739733052371,-515.97,8.794e-05,2]
[353272643,1739733052381,-500.0,8.794e-05,2]
[353272644,1739733052390,-500.0,8.794e-05,2]
[353272645,1739733052400,-500.0,8.794e-05,2]
[353272646,1739733052409,-500.0,8.794e-05,2]
[353272647,1739733052419,-699.6,8.794e-05,2]
[353272648,1739733052428,-876.51,8.794e-05,2]
[353272649,1739733052437,-1483.37,8.794e-05,2]
[353272650,1739733052446,-9350.80448017,8.794e-05,2]
[353272651,1739733052456,-24243.02,8.794e-05,2]
[353272652,1739733052465,-500.0,8.794e-05,2]
[353272653,1739733052476,-760.68,8.794e-05,2]
[353272654,1739733052485,-1122.57,8.794e-05,2]
[353272655,1739733052494,-2544.33,8.794e-05,2]
[353272656,1739733052504,-702.92,8.794e-05,2]
[353272657,1739733052513,-4575.58,8.794e-05,2]
[353272658,1739733052523,-579.63,8.794e-05,2]
[353272659,1739733052532,-657.42,8.794e-05,2]
[353272660,1739733052542,-500.0,8.794e-05,2]
[353272661,1739733052551,-500.0,8.794e-05,2]
[353272662,1739733052561,-500.0,8.794e-05,2]
[353272663,1739733052570,-500.0,8.794e-05,2]
[353272664,1739733052580,-2085.29,8.794e-05,2]
[353272665,1739733052588,-1091.36,8.794e-05,2]
[353272666,1739733052598,-591.81,8.794e-05,2]
[353272667,1739733052609,-425.12980911,8.794e-05,2]
[353272668,1739733052619,-729.94,8.794e-05,2]
[353272669,1739733052629,-500.0,8.794e-05,2]
[353272670,1739733052638,-500.0,8.794e-05,2]
[353272671,1739733052648,-1387.47,8.794e-05,2]
[353272672,1739733052658,-2021.25,8.794e-05,2]
[353272673,1739733052668,-511.22526979,8.794e-05,2]
[353272674,1739733052678,-659.34,8.794e-05,2]
[353272675,1739733052688,-1469.94,8.794e-05,2]
[353272676,1739733052698,-981.07,8.794e-05,2]
[353272677,1739733052707,-380.90273082,8.794e-05,2]
[353272678,1739733052717,-1248.94,8.794e-05,2]
[353272679,1739733052727,-500.0,8.794e-05,2]
[353272680,1739733052736,-11079.13,8.794e-05,2]
[353272681,1739733052745,-909.52,8.794e-05,2]
[353272682,1739733052755,-3038.02,8.794e-05,2]
[353272683,1739733052764,-1125.48,8.794e-05,2]
[353272684,1739733052774,-500.0,8.794e-05,2]
[353272685,1739733052785,-500.0,8.794e-05,2]
[353272686,1739733052795,-500.0,8.794e-05,2]
[353272687,1739733052805,-500.0,8.794e-05,2]
[353272688,1739733052815,-500.0,8.794e-05,2]
[353272689,1739733052825,-500.0,8.794e-05,2]
[353272690,1739733052835,-500.0,8.794e-05,2]
[353272691,1739733052844,-3918.87,8.794e-05,2]
[353272692,1739733052854,-2219.97,8.794e-05,2]
[353272693,1739733052863,-1247.21,8.794e-05,2]
[353272694,1739733052873,-500.0,8.794e-05,2]
[353272695,1739733052883,-2054.68,8.794e-05,2]
[353272696,1739733052892,-1640.14,8.794e-05,2]
[353272697,1739733052902,-590.47701257,8.794e-05,2]
[353272698,1739733052911,-10798.56,8.794e-05,2]
[353272699,1739733052921,-823.15,8.794e-05,2]
[353272700,1739733052930,-857.07,8.794e-05,2]
[353272701,1739733052940,-500.0,8.794e-05,2]
[353272702,1739733052950,-692.963,8.853e-05,2]
[353272703,1739733052963,-500.0,8.876e-05,2]
[353272704,1739733052973,-476.19876726,8.876e-05,2]
[353272705,1739733052983,-575.47900022,8.876e-05,2]
[353272706,1739733052992,-500.0,8.876e-05,2]
[353272707,1739733053003,-500.0,8.876e-05,2]
[353272708,1739733053013,-500.0,8.876e-05,2]
[353272709,1739733053023,-1988.86,8.876e-05,2]
[353272710,1739733053035,-500.0,8.876e-05,2]
[353272711,1739733053044,-504.9,8.876e-05,2]
[353272712,1739733053055,-500.0,8.876e-05,2]
[353272713,1739733053064,-500.0,8.876e-05,2]
[353272714,1739733053074,-517.91,8.876e-05,2]
[353272715,1739733053084,-500.0,8.876e-05,2]
[353272716,1739733053093,-500.0,8.876e-05,2]
[353272717,1739733053103,-665.11,8.876e-05,2]
[353272718,1739733053112,-657.75,8.876e-05,2]
[353272719,1739733053123,-500.0,8.876e-05,2]
[353272720,1739733053133,-500.0,8.876e-05,2]
[353272721,1739733053142,-1060.72,8.876e-05,2]
[353272722,1739733053151,-500.0,8.876e-05,2]
[353272723,1739733053161,-500.0,8.876e-05,2]
[353272724,1739733053170,-500.0,8.876e-05,2]
[353272725,1739733053180,-613.58,8.876e-05,2]
[353272726,1739733053189,-500.0,8.876e-05,2]
[353272727,1739733053199,-515.97,8.876e-05,2]
[353272728,1739733053208,-500.0,8.876e-05,2]
[353272729,1739733053218,-500.0,8.876e-05,2]
[353272730,1739733053227,-500.0,8.876e-05,2]
[353272731,1739733053237,-500.0,8.876e-05,2]
[353272732,1739733053246,-699.6,8.876e-05,2]
[353272733,1739733053255,-876.51,8.876e-05,2]
[353272734,1739733053264,-1483.37,8.876e-05,2]
[353272735,1739733053274,-24243.02,8.876e-05,2]
[353272736,1739733053284,-500.0,8.876e-05,2]
[353272737,1739733053293,-760.68,8.876e-05,2]
[353272738,1739733053302,-1122.57,8.876e-05,2]
[353272739,1739733053312,-2544.33,8.876e-05,2]
[353272740,1739733053321,-702.92,8.876e-05,2]
[353272741,1739733053331,-4575.58,8.876e-05,2]
[353272742,1739733053340,-579.63,8.876e-05,2]
[353272743,1739733053350,-657.42,8.876e-05,2]
[353272744,1739733053359,-500.0,8.876e-05,2]
[353272745,1739733053368,-500.0,8.876e-05,2]
[353272746,1739733053379,-500.0,8.876e-05,2]
[353272747,1739733053388,-500.0,8.876e-05,2]
[353272748,1739733053398,-2085.29,8.876e-05,2]
[353272749,1739733053407,-1091.36,8.876e-05,2]
[353272750,1739733053417,-591.81,8.876e-05,2]
[353272751,1739733053426,-729.94,8.876e-05,2]
[353272752,1739733053436,-277.52734824,8.876e-05,2]
[353272753,1739733053446,-500.0,8.876e-05,2]
[353272754,1739733053456,-1387.47,8.876e-05,2]
[353272755,1739733053466,-2021.25,8.876e-05,2]
[353272756,1739733053475,-659.34,8.876e-05,2]
[353272757,1739733053485,-1469.94,8.876e-05,2]
[353272758,1739733053495,-981.07,8.876e-05,2]
[353272759,1739733053505,-1248.94,8.876e-05,2]
[353272760,1739733053515,-500.0,8.876e-05,2]
[353272761,1739733053525,-11079.13,8.876e-05,2]
[353272762,1739733053535,-909.52,8.876e-05,2]
[353272763,1739733053545,-3038.02,8.876e-05,2]
[353272764,1739733053555,-1125.48,8.876e-05,2]
[353272765,1739733053564,-500.0,8.876e-05,2]
[353272766,1739733053574,-500.0,8.876e-05,2]
[353272767,1739733053583,-500.0,8.876e-05,2]
[353272768,1739733053594,-500.0,8.876e-05,2]
[353272769,1739733053603,-548.60922957,8.876e-05,2]
[353272770,1739733053612,-414.81142665,8.876e-05,2]
[353272771,1739733053621,-500.0,8.876e-05,2]
[353272772,1739733053631,-3918.87,8.876e-05,2]
[353272773,1739733053640,-2219.97,8.876e-05,2]
[353272774,1739733053649,-1247.21,8.876e-05,2]
[353272775,1739733053659,-500.0,8.876e-05,2]
[353272776,1739733053668,-2054.68,8.876e-05,2]
[353272777,1739733053678,-1640.14,8.876e-05,2]
[353272778,1739733053687,-10798.56,8.876e-05,2]
[353272779,1739733053696,-823.15,8.876e-05,2]
[353272780,1739733053706,-857.07,8.876e-05,2]
[353272781,1739733053716,-500.0,8.876e-05,2]
[353272782,1739733053725,-472.99490753,8.883e-05,2]
[353272783,1739733053734,-3031.15,8.9e-05,2]
[353272784,1739733053744,-500.0,8.931e-05,2]
[353272785,1739733053754,-150.05,8.931e-05,2]
[353272786,1739733053765,-500.0,8.931e-05,2]
[353272787,1739733053775,-150.05,8.931e-05,2]
[353272788,1739733053785,-944.0,8.931e-05,2]
[353272789,1739733053794,-562.0,8.931e-05,2]
[353272790,1739733053804,-500.0,8.931e-05,2]
[353272791,1739733053813,-500.0,8.958e-05,2]
[353272792,1739733053822,-500.0,8.958e-05,2]
[353272793,1739733053832,-500.0,8.958e-05,2]
[353272794,1739733053841,-500.0,8.958e-05,2]
[353272795,1739733053850,-1988.86,8.958e-05,2]
[353272796,1739733053860,-500.0,8.958e-05,2]
[353272797,1739733053869,-504.9,8.958e-05,2]
[353272798,1739733053878,-335.99665387,8.958e-05,2]
[353272799,1739733053887,-500.0,8.958e-05,2]
[353272800,1739733053897,-517.91,8.958e-05,2]
[353272801,1739733053906,-500.0,8.958e-05,2]
[353272802,1739733053915,-500.0,8.958e-05,2]
[353272803,1739733053924,-665.11,8.958e-05,2]
[353272804,1739733053933,-657.75,8.958e-05,2]
[353272805,1739733053943,-500.0,8.958e-05,2]
[353272806,1739733053952,-500.0,8.958e-05,2]
[353272807,1739733053965,-1060.72,8.958e-05,2]
[353272808,1739733053974,-500.0,8.958e-05,2]
[353272809,1739733053983,-500.0,8.958e-05,2]
[353272810,1739733053993,-500.0,8.958e-05,2]
[353272811,1739733054010,-613.58,8.958e-05,2]
[353272812,1739733054023,-500.0,8.958e-05,2]
[353272813,1739733054033,-515.97,8.958e-05,2]
[353272814,1739733054044,-500.0,8.958e-05,2]
[353272815,1739733054197,-500.0,8.958e-05,2]
[353272816,1739733054207,-366.58259746,8.958e-05,2]
[353272817,1739733054216,-500.0,8.958e-05,2]
[353272818,1739733054226,-699.6,8.958e-05,2]
[353272819,1739733054235,-876.51,8.958e-05,2]
[353272820,1739733054245,-1483.37,8.958e-05,2]
[353272821,1739733054255,-24243.02,8.958e-05,2]
[353272822,1739733054264,-500.0,8.958e-05,2]
[353272823,1739733054274,-760.68,8.958e-05,2]
[353272824,1739733054284,-1122.57,8.958e-05,2]
[353272825,1739733054293,-2544.33,8.958e-05,2]
[353272826,1739733054303,-702.92,8.958e-05,2]
[353272827,1739733054312,-4575.58,8.958e-05,2]
[353272828,1739733054322,-579.63,8.958e-05,2]
[353272829,1739733054331,-657.42,8.958e-05,2]
[353272830,1739733054341,-500.0,8.958e-05,2]
[353272831,1739733054350,-500.0,8.958e-05,2]
[353272832,1739733054359,-500.0,8.958e-05,2]
[353272833,1739733054369,-500.0,8.958e-05,2]
[353272834,1739733054379,-2085.29,8.958e-05,2]
[353272835,1739733054388,-1091.36,8.958e-05,2]
[353272836,1739733054398,-591.81,8.958e-05,2]
[353272837,1739733054407,-729.94,8.958e-05,2]
[353272838,1739733054417,-500.0,8.958e-05,2]
[353272839,1739733054428,-1387.47,8.958e-05,2]
[353272840,1739733054437,-2021.25,8.958e-05,2]
[353272841,1739733054446,-659.34,8.958e-05,2]
[353272842,1739733054456,-1469.94,8.958e-05,2]
[353272843,1739733054465,-981.07,8.958e-05,2]
[353272844,1739733054475,-1248.94,8.958e-05,2]
[353272845,1739733054484,-500.0,8.958e-05,2]
[353272846,1739733054494,-11079.13,8.958e-05,2]
[353272847,1739733054504,-909.52,8.958e-05,2]
[353272848,1739733054514,-1125.48,8.958e-05,2]
[353272849,1739733054523,-3038.02,8.958e-05,2]
[353272850,1739733054533,-500.0,8.958e-05,2]
[353272851,1739733054542,-500.0,8.958e-05,2]
[353272852,1739733054553,-500.0,8.958e-05,2]
[353272853,1739733054562,-500.0,8.958e-05,2]
[353272854,1739733054572,-500.0,8.958e-05,2]
[353272855,1739733054581,-3918.87,8.958e-05,2]
[353272856,1739733054591,-2219.97,8.958e-05,2]
[353272857,1739733054600,-1247.21,8.958e-05,2]
[353272858,1739733054609,-500.0,8.958e-05,2]
[353272859,1739733054619,-2054.68,8.958e-05,2]
[353272860,1739733054628,-1640.14,8.958e-05,2]
[353272861,1739733054637,-10798.56,8.958e-05,2]
[353272862,1739733054647,-823.15,8.958e-05,2]
[353272863,1739733054657,-857.07,8.958e-05,2]
[353272864,1739733054666,-500.0,8.958e-05,2]
[353272865,1739733054675,-26677.28150927,9e-05,2]
[353272866,1739733195122,-2000.0,0.00016656,30]
[353272867,1739733195147,-2000.0,0.00016656,30]
[353272868,1739733195172,-150.0,0.00016656,60]
[353272869,1739733195287,-150.0,0.00016656,90]
[353272870,1739733195313,-719.75322272,0.00016656,60]
[353272871,1739733195338,-221.00225088,0.00016656,120]
[353272872,1739733195367,-1391.99426292,0.00016656,120]
[353272873,1739733195392,-1583.13338725,0.00016656,120]
[353272874,1739733195417,-2528.06437245,0.00016656,120]
[353272875,1739733195442,-1722.72686931,0.00016656,120]
[353272876,1739733195466,-539.56814973,0.00016656,120]
[353272877,1739733195492,-3287.20698846,0.00016656,120]
[353272878,1739733195516,-211.58598095,0.00016656,120]
[353272879,1739733195541,-216.98022736,0.00016656,120]
[353272880,1739733195569,-310.62631285,0.00016656,120]
[353272881,1739733195593,-189.25,0.00016656,30]
[353272882,1739733195617,-2000.0,0.00016656,30]
[353272883,1739733195641,-2000.0,0.00016656,30]
[353272884,1739733195665,-2000.0,0.00016656,30]
[353272885,1739733195689,-2000.0,0.00016656,30]
[353272886,1739733195713,-2000.0,0.00016656,30]
[353272887,1739733195737,-2000.0,0.00016656,30]
[353272888,1739733195761,-3000.0,0.00016656,120]
[353272889,1739733195785,-300000.0,0.00016656,120]
[353272890,1739733195810,-300000.0,0.00016656,120]
[353272891,1739733195833,-300000.0,0.00016656,120]
[353272892,1739733195858,-300000.0,0.00016656,120]
[353272893,1739733195884,-393274.97010648,0.00016656,61]
[353272894,1739733195909,-99119.11426625,0.00016656,32]
[353272895,1739733195934,-2387.0543165,0.00016656,120]
[353272896,1739733195960,-344.9643713,0.00016656,120]
[353272897,1739733195991,-272652.00491459,0.00016656,61]
[353272898,1739733199325,-43791.35926736,0.00016656,61]
[353272899,1739733199362,-601.2844703,0.00016656,30]
[353272900,1739733199405,-991.77613512,0.00016656,120]
[353272901,1739733199440,-843.1,0.00016656,30]
[353272902,1739733199476,-843.099999,0.00016656,30]
[353272903,1739733199512,-843.099999,0.00016656,30]
[353272904,1739733199548,-843.099999,0.00016656,30]
[353272905,1739733199582,-843.099999,0.00016656,30]
[353272906,1739733199619,-2167.2201779,0.00016656,120]
[353272907,1739733199654,-232635.89604233,0.00016656,120]